bitfinex-derivatives/quotes_ETHF0:USTF0_20250704
["timestamp","ask_amount","ask_price","bid_price","bid_amount"]
[1751617258308,1.2001,2539.1,2538.9,3.2078]
[1751617258609,0.78745,2539.0,2538.9,4.5344]
[1751617259216,1.98754,2539.1,2538.9,4.5344]
[1751617259514,0.78745,2539.0,2538.9,4.5344]
[1751617259703,0.78745,2539.0,2538.9,5.06491644]
[1751617259908,0.78745,2539.0,2538.9,3.73831644]
[1751617262613,0.78745,2539.0,2538.9,0.53051644]
[1751617265915,0.78751,2538.8,2538.7,1.3156]
[1751617266311,0.78755,2538.7,2538.6,3.2078]
[1751617266511,0.78754,2538.8,2538.6,5.39837]
[1751617266710,0.78754,2538.8,2538.7,1.403]
[1751617267115,39.83768,2539.1,2538.7,2.19055]
[1751617267313,1.96858,2539.1,2538.7,1.403]
[1751617267613,0.78749,2538.9,2538.6,3.2078]
[1751617267814,0.78752,2538.8,2538.7,0.78753]
[1751617268018,0.78755,2538.7,2538.6,3.99536]
[1751617271315,0.78755,2538.7,2538.6,5.16505086]
[1751617272015,0.78755,2538.7,2538.6,1.95725086]
[1751617272213,0.78755,2538.7,2538.6,5.16505086]
[1751617272914,0.78753,2538.8,2538.7,0.78751]
[1751617273513,0.78755,2538.7,2538.6,4.37749086]
[1751617273912,0.78755,2538.7,2538.6,3.2078]
[1751617274715,0.78755,2538.7,2538.6,3.99538]
[1751617275018,1.1487,2538.9,2538.6,3.2078]
[1751617275219,0.78752,2538.8,2538.7,0.78754]
[1751617275515,1.93621,2538.9,2538.7,0.78754]
[1751617276020,1.93618,2538.9,2538.7,0.78753]
[1751617276318,1.93618,2538.9,2538.8,0.78751]
[1751617276319,1.1487,2538.9,2538.8,0.78751]
[1751617276818,0.78748,2539.0,2538.8,0.78751]
[1751617277022,0.78743,2539.1,2539.0,0.78744]
[1751617277318,1.9734,2539.2,2539.0,0.78743]
[1751617277509,0.78745,2539.0,2538.9,0.78746]
[1751617277713,0.78744,2539.1,2539.0,0.78745]
[1751617277923,1.186,2539.2,2539.0,0.78745]
[1751617278113,0.78743,2539.1,2539.0,0.78743]
[1751617278517,0.78745,2539.0,2538.9,3.15226086]
[1751617278915,0.78745,2539.1,2539.0,0.78745]
[1751617279122,0.78742,2539.1,2539.0,0.78745]
[1751617279915,0.78742,2539.1,2539.0,1.16969086]
[1751617280221,0.78739,2539.2,2539.1,0.78742]
[1751617280422,0.7874,2539.2,2539.1,0.78742]
[1751617280613,0.7874,2539.2,2539.0,1.16969086]
[1751617280614,0.7874,2539.2,2539.0,3.17272086]
[1751617280814,1.97402,2539.1,2539.0,3.17272086]
[1751617281113,1.1866,2539.1,2539.0,3.17272086]
[1751617281417,1.1866,2539.1,2539.0,3.57103424]
[1751617282213,1.1866,2539.1,2539.0,2.00303]
[1751617282413,1.97402,2539.1,2539.0,2.00303]
[1751617282814,1.97402,2539.1,2539.0,1.2156]
[1751617283020,1.1866,2539.1,2539.0,2.00305]
[1751617284720,1.97402,2539.1,2539.0,2.00305]
[1751617284915,1.1866,2539.1,2539.0,2.00305]
[1751617285321,0.78735,2539.4,2539.2,0.78736]
[1751617285521,0.78736,2539.3,2539.2,3.1474631]
[1751617285724,0.78735,2539.4,2539.3,0.78736]
[1751617285922,0.78735,2539.4,2539.3,3.14740863]
[1751617286324,0.78735,2539.4,2539.3,2.36004863]
[1751617286514,3.11325456,2540.5,2539.3,17.11684863]
[1751617286716,6.80852666,2541.9,2541.8,0.78659]
[1751617286922,1.3205,2542.7,2541.8,3.2078]
[1751617287219,10.50100713,2543.3,2542.6,2.35761593]
[1751617287422,0.7862,2543.1,2542.7,1.73401287]
[1751617287617,1.3205,2543.0,2542.8,3.83184486]
[1751617287814,2.10671,2543.0,2542.9,2.26054893]
[1751617288015,9.87230262,2543.0,2542.9,3.43106612]
[1751617288212,14.87230262,2543.0,2542.9,2.8751179]
[1751617288419,0.78639,2542.5,2542.1,2.3569439]
[1751617288616,0.76983991,2542.4,2541.9,3.2078]
[1751617288915,3.97763991,2542.4,2541.9,3.2078]
[1751617289122,3.97763991,2542.4,2541.6,3.2078]
[1751617289621,0.78654,2542.0,2541.6,3.2078]
[1751617289816,0.78656,2541.9,2541.6,3.2078]
[1751617290013,1.2035,2542.5,2541.6,3.2078]
[1751617290014,3.2078,2542.1,2541.6,3.2078]
[1751617290216,1.2411,2542.3,2541.3,3.2078]
[1751617290217,3.2078,2542.2,2541.3,3.2078]
[1751617290416,0.7867,2541.5,2541.3,3.2078]
[1751617290624,0.78666,2541.6,2541.3,3.2078]
[1751617290824,0.78671,2541.4,2541.3,3.2078]
[1751617291020,0.7867,2541.5,2541.3,3.2078]
[1751617291325,0.78668,2541.5,2541.3,3.2078]
[1751617291822,0.78671,2541.5,2541.3,3.2078]
[1751617292026,1.3332,2541.4,2541.3,3.2078]
[1751617293521,2.11991,2541.4,2541.3,3.2078]
[1751617293716,3.2078,2541.9,2541.3,3.2078]
[1751617293919,0.78658,2541.9,2541.3,3.2078]
[1751617294117,0.78658,2541.9,2541.3,3.99453]
[1751617294315,1.3077,2541.8,2541.3,3.99453]
[1751617294720,1.3077,2541.8,2541.3,3.2078]
[1751617295122,0.78666,2541.6,2541.3,3.2078]
[1751617295628,0.7867,2541.5,2541.3,3.2078]
[1751617296228,0.78665,2541.6,2541.3,3.2078]
[1751617296725,0.78664,2541.7,2541.3,3.99453]
[1751617297119,0.78665,2541.6,2541.3,3.2078]
[1751617297522,0.78664,2541.7,2541.3,3.99452]
[1751617297728,0.78664,2541.7,2541.4,0.7867]
[1751617298230,0.78657,2541.9,2541.6,3.99443]
[1751617298824,0.78654,2542.0,2541.7,0.7866]
[1751617299218,0.78654,2542.0,2541.8,0.78658]
[1751617299425,0.78656,2541.9,2541.6,3.2078]
[1751617299724,0.78656,2541.9,2541.7,0.78662]
[1751617300430,0.78659,2541.8,2541.6,3.99443]
[1751617300628,0.78659,2541.8,2541.7,2.27612677]
[1751617301620,0.78657,2541.9,2541.7,3.06274677]
[1751617301828,0.78655,2541.9,2541.8,3.06271677]
[1751617302028,0.78655,2541.9,2541.8,2.27612677]
[1751617305129,2.90521,2542.1,2542.0,0.78652]
[1751617305329,3.2078,2543.2,2542.0,24.67722525]
[1751617305532,0.78631,2542.7,2542.6,3.2078]
[1751617305732,0.7863,2542.8,2542.6,5.48394525]
[1751617306035,0.7863,2542.8,2542.7,2.27614525]
[1751617306234,43.3372,2543.1,2542.7,2.27614525]
[1751617306437,43.3372,2543.1,2542.8,2.27614525]
[1751617306631,0.78621,2543.0,2542.9,1.90731295]
[1751617306826,2.14441,2543.0,2542.9,1.90731295]
[1751617307833,2.7525,2543.1,2543.0,0.78621]
[1751617308138,2.7525,2543.1,2543.0,2.69352295]
[1751617308438,2.7525,2543.1,2543.0,3.06218825]
[1751617308833,2.7525,2543.1,2543.0,2.27597825]
[1751617309041,3.53868,2543.1,2543.0,1.90731295]
[1751617309231,2.7525,2543.1,2543.0,1.90731295]
[1751617309436,2.7525,2543.1,2543.0,2.27599436]
[1751617309733,3.53868,2543.1,2543.0,1.90731295]
[1751617311235,3.53868,2543.1,2543.0,2.27600282]
[1751617311542,3.53868,2543.1,2543.0,1.72992529]
[1751617311930,3.53868,2543.1,2543.0,2.29049197]
[1751617313333,3.53868,2543.1,2542.3,0.78642]
[1751617313334,7.7525,2543.1,2542.4,3.09444247]
[1751617313535,0.78634,2542.6,2542.5,3.09444247]
[1751617313736,0.78637,2542.5,2542.4,3.09444247]
[1751617314140,0.78643,2542.3,2542.2,3.09444247]
[1751617314341,0.78646,2542.2,2542.0,3.2078]
[1751617314636,2.91452,2542.7,2542.1,3.11265763]
[1751617314840,0.78649,2542.1,2542.0,6.32045763]
[1751617315040,1.96593,2542.5,2542.0,6.32045763]
[1751617315041,0.78648,2542.2,2542.0,6.32045763]
[1751617315239,1.3736,2542.6,2542.1,0.78648]
[1751617315240,0.78643,2542.4,2542.1,0.78648]
[1751617315444,40.8,2542.5,2542.1,3.89913763]
[1751617315642,40.8,2542.5,2542.1,3.11265763]
[1751617315938,0.78646,2542.2,2542.1,3.11265763]
[1751617316442,0.78649,2542.1,2542.0,7.13599216]
[1751617316740,0.78649,2542.1,2542.0,3.2078]
[1751617319540,0.78649,2542.1,2542.0,3.1270597]
[1751617319735,0.78659,2541.8,2541.7,6.3348597]
[1751617319936,0.78662,2541.7,2541.6,3.1270597]
[1751617320141,2.14172,2541.7,2541.6,0.54717761]
[1751617320745,2.14172,2541.7,2541.6,2.11128573]
[1751617321844,2.14172,2541.7,2541.6,1.56410812]
[1751617322041,2.14172,2541.7,2541.6,2.11116803]
[1751617323336,2.14172,2541.7,2541.6,0.54705991]
[1751617323537,0.78665,2541.6,2541.5,1.56410812]
[1751617323738,8.886,2541.9,2541.5,0.78666]
[1751617323938,0.78664,2541.7,2541.6,1.56387756]
[1751617324138,0.5302,2541.8,2541.6,2.3015]
[1751617324344,0.5302,2541.8,2541.7,3.2078]
[1751617324740,0.5302,2541.8,2541.7,3.99442]
[1751617324946,0.5302,2541.8,2541.7,7.1214797]
[1751617325341,0.5302,2541.8,2541.7,13.29316835]
[1751617325948,0.5302,2541.8,2541.7,10.16610865]
[1751617326241,3.2078,2542.7,2541.9,1.96639]
[1751617326549,1.67676,2542.6,2542.5,1.56373039]
[1751617326743,3.07876,2542.6,2542.5,2.73541904]
[1751617326949,3.07876,2542.6,2542.5,3.52178904]
[1751617327151,3.07876,2542.6,2542.5,2.73541904]
[1751617328450,0.8904,2542.6,2542.5,2.73541904]
[1751617329245,1.67674,2542.6,2542.5,2.73541904]
[1751617329449,0.8904,2542.6,2542.5,2.73541904]
[1751617329951,1.67674,2542.6,2542.5,2.73541904]
[1751617330150,3.99411,2542.7,2542.5,2.73541904]
[1751617330349,3.99411,2542.7,2542.6,1.17168865]
[1751617331650,3.2078,2542.7,2542.6,1.17168865]
[1751617331851,3.2078,2542.7,2542.6,3.52175904]
[1751617332146,3.2078,2542.7,2542.6,2.73541904]
[1751617332653,3.99411,2542.7,2542.6,3.28321808]
[1751617333045,3.2078,2542.7,2542.6,4.06955808]
[1751617333252,3.99411,2542.7,2542.6,3.28321808]
[1751617333952,3.99411,2542.7,2542.6,1.71948769]
[1751617334252,3.99411,2542.7,2542.6,1.71949908]
[1751617335552,0.78631,2542.7,2542.6,1.71949908]
[1751617337153,0.78631,2542.7,2542.6,3.28322947]
[1751617338451,0.78631,2542.7,2542.6,4.06956947]
[1751617338648,15.0842,2542.8,2542.6,4.06956947]
[1751617338852,15.0842,2542.8,2542.7,1.71949908]
[1751617339043,14.2979,2542.8,2542.7,4.06953947]
[1751617339244,2.1159,2542.8,2542.7,2.50580908]
[1751617339853,2.1159,2542.8,2542.7,3.91000908]
[1751617340054,1.73248293,2542.8,2542.7,7.03746986]
[1751617340246,1.73248293,2542.8,2542.7,7.04267603]
[1751617340649,1.73248293,2542.8,2542.7,6.49349916]
[1751617341551,1.73248293,2542.8,2542.7,5.08929916]
[1751617342052,2.51876293,2542.8,2542.7,4.30298916]
[1751617342960,2.51876293,2542.8,2542.7,1.17168865]
[1751617343661,2.51876293,2542.8,2542.7,1.71903603]
[1751617343860,2.51876293,2542.8,2542.7,4.06673082]
[1751617344353,2.51876293,2542.8,2542.7,1.71903603]
[1751617344959,2.51876293,2542.8,2542.7,2.50534603]
[1751617345254,1.73248293,2542.8,2542.7,2.50534603]
[1751617345659,1.73248293,2542.8,2542.7,4.74914603]
[1751617346061,3.9939,2543.4,2542.9,1.96557]
[1751617346257,3.2078,2543.4,2543.3,0.78612]
[1751617346457,3.2078,2543.4,2543.3,2.50484508]
[1751617346657,3.2078,2543.4,2543.3,4.06941635]
[1751617347058,1.52654,2543.6,2543.5,0.78606]
[1751617347262,0.7405,2543.6,2543.5,2.50478508]
[1751617347464,1.52653,2543.6,2543.5,2.50478508]
[1751617347662,1.52653,2543.6,2543.5,1.71872508]
[1751617348764,1.52653,2543.6,2543.5,2.89085477]
[1751617349163,0.7405,2543.6,2543.5,2.89085477]
[1751617349462,0.7405,2543.6,2543.5,3.67691477]
[1751617350264,0.7405,2543.6,2543.5,3.12987834]
[1751617351266,0.7405,2543.6,2543.5,3.52231992]
[1751617352166,0.7405,2543.6,2543.5,2.34334089]
[1751617352362,0.7405,2543.6,2543.5,1.17168865]
[1751617352756,1.52653,2543.6,2543.5,1.17168865]
[1751617353664,0.7405,2543.6,2543.5,1.95774865]
[1751617353868,0.7405,2543.6,2543.5,3.52231992]
[1751617354056,0.7405,2543.6,2543.5,6.73011992]
[1751617354566,0.7405,2543.6,2543.5,7.51240555]
[1751617355566,0.7405,2543.6,2543.5,6.72634555]
[1751617355967,1.52653,2543.6,2543.5,6.72634555]
[1751617356570,0.7405,2543.6,2543.5,6.72634555]
[1751617356770,1.52653,2543.6,2543.5,6.72634555]
[1751617357369,1.52653,2543.6,2543.5,4.37948865]
[1751617358364,1.52653,2543.6,2543.5,5.94281211]
[1751617358571,1.52653,2543.6,2543.5,2.34429941]
[1751617358869,1.52653,2543.6,2543.5,1.17168865]
[1751617359465,1.52653,2543.6,2543.5,2.34429941]
[1751617360570,8.9483,2543.6,2543.3,1.56332346]
[1751617360772,0.78618,2543.1,2543.0,2.3468569]
[1751617360967,0.78621,2543.0,2542.9,5.5546569]
[1751617362066,0.78621,2543.0,2542.9,3.2078]
[1751617362370,0.78621,2543.0,2542.9,5.5546569]
[1751617363570,1.96563,2542.9,2542.5,0.28929502]
[1751617363866,1.96577,2542.7,2542.0,0.876]
[1751617364067,1.96577,2542.7,2541.9,7.13599216]
[1751617364068,1.96603,2542.4,2541.9,3.2078]
[1751617364266,0.78647,2542.2,2541.9,3.2078]
[1751617364462,13.3371,2542.3,2541.9,3.2078]
[1751617364773,0.78652,2542.0,2541.9,3.2078]
[1751617365174,0.78651,2542.1,2541.9,3.2078]
[1751617365376,1.3661,2542.2,2541.9,3.2078]
[1751617365574,0.78652,2542.0,2541.9,3.2078]
[1751617367172,0.78662,2541.7,2541.6,3.2078]
[1751617367375,0.7866,2541.8,2541.6,3.2078]
[1751617367566,0.78662,2541.7,2541.6,3.2078]
[1751617369178,2.11272,2541.7,2541.6,3.2078]
[1751617371774,41.77748,2542.0,2541.6,3.2078]
[1751617371981,1.96639,2541.9,2541.6,3.2078]
[1751617372277,0.78662,2541.7,2541.6,3.2078]
[1751617376382,0.78662,2541.7,2541.6,3.99445]
[1751617379283,1.9668,2542.0,2541.9,0.78655]
[1751617379475,2.75332,2542.0,2541.9,0.78655]
[1751617380582,1.9668,2542.0,2541.9,0.78655]
[1751617381785,1.9668,2542.0,2541.9,3.99435]
[1751617382278,0.78633,2542.7,2541.9,3.2078]
[1751617382477,3.2078,2542.8,2542.4,0.78639]
[1751617382682,0.7864,2542.5,2542.4,0.78639]
[1751617383385,0.78641,2542.4,2542.3,0.78641]
[1751617383585,0.78643,2542.3,2542.2,3.99423]
[1751617384284,0.78642,2542.4,2542.3,0.78642]
[1751617384987,0.78643,2542.3,2542.2,3.99424]
[1751617385985,0.78642,2542.4,2542.3,0.78643]
[1751617386185,0.78642,2542.4,2542.2,3.99424]
[1751617386386,0.78643,2542.3,2542.2,3.99424]
[1751617386587,1.3304,2542.4,2542.2,3.2078]
[1751617386890,2.11681,2542.4,2542.3,0.78643]
[1751617387188,0.78641,2542.4,2542.3,0.78643]
[1751617387489,1.69429,2542.5,2542.4,0.7864]
[1751617387685,0.9079,2542.5,2542.4,0.7864]
[1751617388285,1.69427,2542.5,2542.4,0.7864]
[1751617388485,0.9079,2542.5,2542.4,0.7864]
[1751617389682,1.69427,2542.5,2542.4,0.7864]
[1751617390793,0.9079,2542.5,2542.4,2.35222374]
[1751617391495,0.9079,2542.5,2542.4,0.7864]
[1751617391794,0.9079,2542.5,2542.4,3.12591717]
[1751617392687,0.9079,2542.5,2542.4,0.7864]
[1751617393190,0.9079,2542.5,2542.4,2.0943]
[1751617394094,3.1462,2542.7,2542.6,0.78634]
[1751617394294,3.1462,2542.7,2542.6,6.34464105]
[1751617396184,3.1462,2542.7,2542.6,3.99414]
[1751617398188,3.1462,2542.7,2542.6,6.34303847]
[1751617400295,3.1462,2542.7,2542.6,3.99414]
[1751617403295,3.1462,2542.7,2542.6,7.11448895]
[1751617405398,2.7527,2542.9,2542.6,7.11448895]
[1751617405597,0.78601,2543.7,2543.6,0.786]
[1751617405796,0.78602,2543.7,2543.6,0.78601]
[1751617406196,3.1144,2543.9,2543.2,3.5317793]
[1751617406393,3.1144,2543.9,2543.4,5.17301]
[1751617406394,3.90036,2543.9,2543.4,5.17301]
[1751617406594,0.78601,2543.7,2543.6,0.786]
[1751617406794,0.78599,2543.8,2543.7,0.78598]
[1751617406997,2.15609,2543.8,2543.7,0.78598]
[1751617407196,1.3701,2543.8,2543.7,0.78598]
[1751617409799,0.786,2543.7,2543.6,1.5664093]
[1751617410106,0.786,2543.7,2543.5,2.3524593]
[1751617410407,1.3422,2543.6,2543.5,1.5664093]
[1751617410705,1.3422,2543.6,2543.5,2.3524693]
[1751617411203,1.3422,2543.6,2543.5,0.78606]
[1751617411404,1.3422,2543.6,2543.5,2.3524693]
[1751617411706,2.12823,2543.6,2543.4,2.3524793]
[1751617412604,0.78606,2543.5,2543.4,1.5664093]
[1751617412805,1.3462,2543.5,2543.4,2.3524993]
[1751617413108,2.53025,2543.9,2543.2,1.96539]
[1751617413303,1.7443,2543.9,2543.4,5.17301]
[1751617413504,1.7443,2543.9,2543.8,0.78597]
[1751617413708,2.53024,2543.9,2543.7,0.78597]
[1751617414107,3.87644,2543.9,2543.7,0.78598]
[1751617414703,0.78597,2543.8,2543.7,0.78598]
[1751617415007,3.0905,2543.9,2543.7,0.78598]
[1751617415008,3.87646,2543.9,2543.7,0.78598]
[1751617415208,0.78598,2543.8,2543.6,0.78601]
[1751617415407,3.87645,2543.9,2543.7,0.786]
[1751617415811,3.0905,2543.9,2543.8,0.78597]
[1751617415998,3.87644,2543.9,2543.8,0.78597]
[1751617416198,0.78597,2543.8,2543.7,0.78598]
[1751617416398,3.87645,2543.9,2543.4,5.17302]
[1751617416602,3.0905,2543.9,2543.7,0.78598]
[1751617416802,3.0905,2543.9,2543.8,0.78597]
[1751617417109,3.87645,2543.9,2543.7,0.78598]
[1751617417408,3.0905,2543.9,2543.8,0.78597]
[1751617417811,3.0905,2543.9,2543.8,2.35063836]
[1751617418003,3.87644,2543.9,2543.8,2.35063836]
[1751617418204,3.0905,2543.9,2543.8,0.78597]
[1751617419213,1.7443,2543.9,2543.8,0.78597]
[1751617419712,2.53024,2543.9,2543.8,0.78597]
[1751617420106,0.78597,2543.8,2543.7,5.55845836]
[1751617420916,0.78597,2543.8,2543.7,4.77246836]
[1751617421114,0.78597,2543.8,2543.7,5.55846836]
[1751617421313,2.18397,2543.8,2543.7,5.55846836]
[1751617421514,2.18397,2543.8,2543.7,4.77246836]
[1751617421921,2.18397,2543.8,2543.7,1.56466836]
[1751617422612,2.18397,2543.8,2543.7,1.17369116]
[1751617422812,0.786,2543.7,2543.6,1.17369116]
[1751617423014,2.184,2543.7,2543.6,1.17369116]
[1751617424211,43.789,2543.7,2543.4,1.56466836]
[1751617424417,0.78609,2543.4,2543.3,3.2078]
[1751617424916,40.8,2543.6,2543.4,0.78607]
[1751617425110,0.78606,2543.5,2543.4,0.78607]
[1751617425313,2.08035,2543.6,2543.3,4.77246836]
[1751617425612,38.17302,2543.7,2543.5,0.78606]
[1751617425814,40.8,2543.6,2543.5,2.35072836]
[1751617426212,0.78599,2543.8,2543.7,0.786]
[1751617426411,0.78599,2543.8,2543.6,2.35195718]
[1751617426615,2.53026,2543.9,2543.7,0.786]
[1751617426813,3.82456,2543.9,2543.7,0.786]
[1751617427117,3.0386,2543.9,2543.7,1.56594718]
[1751617427317,3.82456,2543.9,2543.7,2.35193718]
[1751617427518,0.78597,2543.8,2543.7,1.56594718]
[1751617428117,2.12427,2543.8,2543.7,1.56594718]
[1751617428422,0.78597,2543.8,2543.7,1.56594718]
[1751617428710,1.7443,2543.9,2543.6,0.78601]
[1751617428711,0.786,2543.7,2543.6,1.56594718]
[1751617428918,1.3383,2543.7,2543.4,2.35203718]
[1751617429111,0.78603,2543.6,2543.5,1.56594718]
[1751617429308,2.12433,2543.7,2543.5,2.35200718]
[1751617429512,1.3383,2543.7,2543.5,2.35200718]
[1751617429712,2.12433,2543.7,2543.5,2.35200718]
[1751617429919,0.78603,2543.6,2543.5,1.56594718]
[1751617430916,2.10703,2543.6,2543.5,1.56594718]
[1751617431715,2.10703,2543.6,2543.4,1.56594718]
[1751617431716,0.78606,2543.5,2543.4,1.56594718]
[1751617431919,2.10706,2543.5,2543.4,1.56594718]
[1751617432114,39.40006,2543.5,2543.4,1.56594718]
[1751617432916,44.40006,2543.5,2543.4,1.56594718]
[1751617433917,44.40006,2543.5,2543.3,1.56594718]
[1751617433918,0.78609,2543.4,2543.3,1.56594718]
[1751617434220,3.02499,2543.4,2543.3,1.56594718]
[1751617434623,43.82499,2543.4,2543.3,1.56594718]
[1751617435122,43.82499,2543.4,2543.2,2.34700254]
[1751617435123,0.78612,2543.3,2543.2,2.34700254]
[1751617435320,3.04582,2543.3,2543.2,2.34700254]
[1751617436013,3.04582,2543.3,2543.2,1.56962773]
[1751617436218,0.78615,2543.2,2543.1,1.56962773]
[1751617436524,2.07805,2543.2,2543.1,1.56962773]
[1751617437824,0.78615,2543.2,2543.1,1.56962773]
[1751617438418,0.78618,2543.1,2543.0,1.56962773]
[1751617438925,0.78621,2543.0,2542.9,2.34700254]
[1751617439923,0.78621,2543.0,2542.9,3.13325254]
[1751617440123,0.78621,2543.0,2542.9,2.34700254]
[1751617441629,42.365,2543.2,2542.8,2.34700254]
[1751617441630,0.78625,2542.9,2542.8,2.34700254]
[1751617442323,0.78625,2542.9,2542.8,3.13328254]
[1751617442724,41.6961,2543.2,2542.9,0.78625]
[1751617442921,0.78618,2543.1,2543.0,1.56749873]
[1751617446341,0.78618,2543.1,2543.0,2.35370873]
[1751617446640,0.78618,2543.1,2543.0,1.56749873]
[1751617448145,0.78621,2543.0,2542.9,1.56749873]
[1751617448440,1.72431,2543.0,2542.9,1.56749873]
[1751617450245,0.78625,2542.9,2542.8,2.34700254]
[1751617451744,0.78625,2542.9,2542.8,3.13328254]
[1751617451947,0.9381,2543.0,2542.8,2.34700254]
[1751617451948,1.72433,2543.0,2542.8,2.34700254]
[1751617452149,0.78625,2542.9,2542.8,0.78626]
[1751617452637,0.9381,2543.0,2542.9,0.78625]
[1751617452638,0.78624,2543.0,2542.9,0.78625]
[1751617452843,38.03924,2543.0,2542.9,3.13837727]
[1751617455749,0.78624,2543.0,2542.9,2.35212727]
[1751617456048,0.78624,2543.0,2542.9,3.13837727]
[1751617456349,0.78624,2543.0,2542.9,4.56247727]
[1751617456550,38.03721,2543.1,2543.0,0.78621]
[1751617456748,38.03721,2543.1,2543.0,2.35304196]
[1751617457150,38.03721,2543.1,2543.0,3.13925196]
[1751617458150,3.1456,2543.2,2543.1,0.78618]
[1751617458451,38.03413,2543.3,2543.2,0.78615]
[1751617458652,38.03413,2543.3,2543.2,3.14064541]
[1751617459251,38.03413,2543.3,2543.2,0.78615]
[1751617459750,37.248,2543.3,2543.1,1.3746]
[1751617459943,38.03414,2543.3,2543.2,0.78613]
[1751617460146,38.03114,2543.3,2543.2,0.78613]
[1751617460348,2.76121,2543.4,2543.3,0.78612]
[1751617460549,2.76119,2543.4,2543.3,3.14128693]
[1751617460746,1.9751,2543.4,2543.3,3.14128693]
[1751617460947,1.9751,2543.4,2543.3,0.78612]
[1751617461853,39.2191,2543.4,2543.3,0.78612]
[1751617462054,40.00519,2543.4,2543.3,0.78612]
[1751617462254,39.2191,2543.4,2543.1,4.50393672]
[1751617462443,0.78615,2543.3,2543.2,0.78614]
[1751617462848,1.9751,2543.4,2543.3,0.78612]
[1751617463255,40.00119,2543.4,2543.3,0.78612]
[1751617464249,1.9751,2543.4,2543.3,0.78612]
[1751617464455,1.9751,2543.4,2543.3,3.99392]
[1751617464649,1.9751,2543.4,2543.3,5.28282]
[1751617464850,1.9751,2543.4,2543.3,10.28282]
[1751617465058,1.9751,2543.4,2543.3,13.41215672]
[1751617466847,5.1708,2544.2,2543.3,9.4967]
[1751617467053,5.1708,2544.2,2544.0,0.78588]
[1751617467054,37.235,2544.1,2544.0,0.78588]
[1751617467254,37.235,2544.1,2544.0,2.35466986]
[1751617467757,38.02087,2544.1,2544.0,2.35466986]
[1751617468255,37.234,2544.2,2544.1,0.78587]
[1751617468456,38.01984,2544.2,2544.1,2.35465986]
[1751617469456,37.234,2544.2,2544.1,0.78587]
[1751617469957,37.234,2544.2,2544.0,1.56878986]
[1751617470257,2.12587,2544.1,2544.0,1.56878986]
[1751617470458,0.78591,2544.0,2543.9,4.77658986]
[1751617470659,2.12591,2544.0,2543.9,4.77658986]
[1751617471552,2.12591,2544.0,2543.9,5.56252986]
[1751617471757,2.12591,2544.0,2543.9,4.77658986]
[1751617472060,2.12591,2544.0,2543.9,3.2078]
[1751617477661,39.34191,2544.0,2543.9,3.2078]
[1751617478062,2.12591,2544.0,2543.9,3.2078]
[1751617478259,39.34091,2544.0,2543.9,3.2078]
[1751617478863,39.34091,2544.0,2543.9,3.75566879]
[1751617479061,39.33991,2544.0,2543.9,3.75566879]
[1751617479562,39.33791,2544.0,2543.9,3.75566879]
[1751617479864,39.33791,2544.0,2543.9,3.75569961]
[1751617480562,39.33791,2544.0,2543.9,0.54789961]
[1751617481657,0.786,2543.7,2543.6,1.56878986]
[1751617481957,0.78603,2543.6,2543.5,1.56878986]
[1751617482161,1.79883,2543.6,2543.5,1.56878986]
[1751617483361,0.78606,2543.5,2543.4,2.35318479]
[1751617483562,1.81166,2543.5,2543.4,2.35318479]
[1751617484358,3.14546,2543.5,2543.4,0.70083873]
[1751617484565,1.9654,2543.2,2542.8,3.13757972]
[1751617484867,0.78625,2542.9,2542.8,3.13757972]
[1751617485067,0.78628,2542.8,2542.7,4.09077972]
[1751617485362,0.78628,2542.8,2542.7,0.9532]
[1751617488170,0.78631,2542.7,2542.6,3.2078]
[1751617489265,0.78627,2542.9,2542.7,0.78631]
[1751617490365,37.98727,2542.9,2542.6,3.2078]
[1751617490571,0.78627,2542.9,2542.8,0.78628]
[1751617490971,37.2,2543.0,2542.9,0.78625]
[1751617491164,37.98622,2543.0,2542.9,3.99405]
[1751617491365,37.98622,2543.0,2542.9,5.41545]
[1751617491571,0.78622,2543.0,2542.9,4.6292]
[1751617491969,0.78621,2543.1,2543.0,0.78622]
[1751617492168,0.78621,2543.1,2543.0,2.20762]
[1751617493173,0.78621,2543.1,2543.0,1.4214]
[1751617493476,0.78614,2543.3,2543.0,6.4214]
[1751617493670,0.78614,2543.3,2543.1,1.17406915]
[1751617493870,0.78614,2543.3,2543.2,1.17406915]
[1751617494273,0.78614,2543.3,2543.1,0.78617]
[1751617494770,37.194,2543.4,2543.3,0.78612]
[1751617494977,0.78611,2543.4,2543.2,3.99393]
[1751617495172,37.98009,2543.5,2543.3,0.78612]
[1751617495474,0.78609,2543.5,2543.4,1.17394248]
[1751617497077,37.97709,2543.5,2543.4,1.17394248]
[1751617497372,61.2615,2543.6,2543.5,0.78606]
[1751617497575,3.2078,2543.6,2543.5,1.96000248]
[1751617497776,3.2078,2543.6,2543.5,0.78606]
[1751617499381,39.12341,2543.7,2543.6,0.78603]
[1751617499577,38.3344,2543.7,2543.6,0.78603]
[1751617499775,1.1514,2543.7,2543.6,0.78603]
[1751617500280,1.1514,2543.7,2543.6,2.07633]
[1751617500476,1.9374,2543.7,2543.6,2.07633]
[1751617500675,1.9374,2543.7,2543.6,1.2903]
[1751617501681,0.78603,2543.6,2543.5,3.2078]
[1751617501878,38.70373,2543.6,2543.5,3.2078]
[1751617504780,0.78609,2543.4,2543.3,2.34955438]
[1751617504987,0.78612,2543.3,2543.2,3.2078]
[1751617507085,2.20632,2543.3,2543.2,3.2078]
[1751617508790,2.20632,2543.3,2543.2,1.1754883]
[1751617508990,0.78615,2543.2,2543.1,1.1754883]
[1751617509291,0.78625,2542.9,2542.8,3.2078]
[1751617509482,0.78625,2542.9,2542.8,5.55924214]
[1751617510384,0.78625,2542.9,2542.8,2.35144214]
[1751617510686,37.94725,2542.9,2542.8,2.35144214]
[1751617511584,0.78625,2542.9,2542.8,2.35144214]